[Event "Doeberl Cup 2022"]
[Site "Canberra"]
[Date "2022.04.14"]
[Round "1.1"]
[White "Charles, Gareth"]
[Black "Melkumyan, Hrant"]
[Result "0-1"]
[ECO "A29"]
[WhiteElo "2012"]
[BlackElo "2649"]
[Annotator "TA"]
[PlyCount "60"]
[EventDate "2022.04.14"]
[EventType "swiss"]
[EventCountry "AUS"]
[SourceTitle "playchess.com"]
[Source "ChessBase"]
[SourceQuality "1"]
[TimeControl "5400+30"]

{[%evp 21,60,12,23,-5,0,-31,-16,-25,-29,-45,-29,-28,-26,-43,-29,-21,-29,-54,-29,-20,-31,-47,-17,-8,-18,-41,-43,-57,-26,-356,-347,-345,-315,-522,-538,-687,-581,-587,-572,-583,-576]} 1. c4 {[%emt 1:31:00]} e5 {[%emt 1:31:00]} 2. Nc3 {[%emt 0:00:30]} Nf6 {[%emt 0:00:30]} 3. Nf3 {[%emt 0:00:30]} Nc6 {[%emt 0:00:30]} 4. g3 {[%emt 0:00:30]} d5 {[%emt 0:00:30]} 5. cxd5 {[%emt 0:00:30]} Nxd5 {[%emt 0:00:30]} 6. Bg2 {[%emt 0:00:30]} Nb6 {[%emt 0:00:30]} 7. O-O {[%emt 0:00:30]} Be7 {[%emt 0:00:30]} 8. a3 {[%emt 0:00:30]} O-O {[%emt 0:00:30]} 9. b4 {[%emt 0:00:30]} Be6 {[%emt 0:00:30]} 10. d3 {[%emt 0:00:30]} f6 {[%emt 0:00:30]} 11. Bb2 {[%emt 0:00:30]} Qd7 {[%emt 0:00:30]} 12. Re1 {[%emt 0:00:30] A29: English Opening: Four Knights Variation with 4 g3.} Rfd8 $5 {[%emt 0:00:30][%mdl 4] A promising side line.} 13. Rc1 {[%emt 0:00:00]} a5 {[%emt 0:00:00]} 14. b5 {[%emt 0:00:00] The position is equal.} Nd4 {[%emt 0:00:00]} 15. Nd2 {[%emt 0:00:00] [#] Against Bb3} Nxb5 $146 {[%emt 0:00:00]} ({Predecessor:} 15... Rab8 16. a4 Bb4 17. e3 Nf5 18. Bf1 Nd6 19. Qc2 c6 20. Red1 Bg4 21. bxc6 bxc6 {0-1 (35) Braguine,V (1968)-Srienz,C (2236) Bregenz 2015}) 16. Nxb5 {[%emt 0:00:00]} Qxb5 {[%emt 0:00:00]} 17. Rxc7 {[%emt 0:00:00]} Bd6 {[%emt 0:00:00]} 18. Rc2 {[%emt 0:00:00]} Na4 {[%emt 0:00:00]} 19. Qb1 {[%emt 0:00:00]} Rab8 {[%emt 0:00:00]} ({Don't take} 19... Nxb2 20. Rxb2 Qa4 21. Nc4 $14) (19... Rac8 $5 {[%cal Rc8c2]} 20. Rec1 Rc5 $15) 20. Ne4 {[%emt 0:00:00]} Bf8 {[%emt 0:00:00]} 21. Nc3 {[%emt 0:00:00]} Qb3 {[%emt 0:00:00]} 22. Nxa4 {[%emt 0:00:00]} Qxa4 {[%emt 0:00:00]} 23. Rc3 {[%emt 0:00:00]} b5 {[%emt 0:00:00] And now ...b4 would win.} 24. Bc6 {[%emt 0:03:22]} Qg4 {[%emt 0:00:00] [#] Threatens to win with ...b4.} 25. e3 $2 {[%emt 0:01:18][%mdl 8192] Loses the game.} (25. Bf3 $11 Qa4 26. Bc6) 25... b4 $19 {[%emt 0:00:00]} 26. axb4 {[%emt 0:01:21]} Bxb4 {[%emt 0:00:00]} 27. Qc2 {[%emt 0:00:33]} (27. Qa1) 27... Rdc8 {[%emt 0:00:00] Black is clearly winning.} 28. Bg2 {[%emt 0:00:41]} Rxc3 {[%emt 0:00:00]} 29. Bxc3 {[%emt 0:00:33]} Rc8 {[%emt 0:00:00]} 30. h3 {[%emt 0:01:12]} Qg6 {[%emt 0:09:00] Weighted Error Value: White=0.69/Black=0.17 (very precise)} 0-1

[Event "Doeberl Cup 2022"]
[Site "Canberra"]
[Date "2022.04.14"]
[Round "1.2"]
[White "Kuybokarov, Temur"]
[Black "Safarian, Alek"]
[Result "1-0"]
[ECO "C42"]
[WhiteElo "2576"]
[BlackElo "2015"]
[Annotator "TA"]
[PlyCount "53"]
[EventDate "2022.04.14"]
[EventType "swiss"]
[EventCountry "AUS"]
[SourceTitle "playchess.com"]
[Source "ChessBase"]
[SourceQuality "1"]
[TimeControl "5400+30"]

{[%evp 18,53,35,23,43,0,0,0,0,0,0,0,0,0,63,55,301,288,479,484,485,489,477,490,492,477,479,471,700,715,698,683,672,604,802,783,766,764]} 1. e4 {[%emt 0:00:00]} e5 {[%emt 0:05:01]} 2. Nf3 {[%emt 0:00:00]} Nf6 {[%emt 0:00:35]} 3. Nxe5 {[%emt 0:00:18]} d6 {[%emt 0:00:30]} 4. Nf3 {[%emt 0:00:30]} Nxe4 {[%emt 0:00:30]} 5. d4 {[%emt 0:02:33]} d5 {[%emt 0:01:11]} 6. Bd3 {[%emt 0:00:31]} Bd6 {[%emt 0:01:32]} 7. O-O {[%emt 0:01:00]} O-O {[%emt 0:00:20]} 8. Re1 {[%emt 0:00:22]} Bf5 {[%emt 0:15:57]} 9. c4 {[%emt 0:00:54]} c6 {[%emt 0:00:32]} 10. Qb3 {[%emt 0:00:54]} Na6 {[%emt 0:27:58] 10...Qd7 is the fancy move. C42: Petroff Defence: 3 Nxe5 and unusual White 3rd moves.} 11. Nc3 {[%emt 0:14:45][%cal Rc3e4]} (11. cxd5 $5 {[%cal Rd3e4]} Nac5 12. dxc5 Nxc5 13. Bxf5 Nxb3 14. axb3 $14) 11... Nec5 {[%emt 0:04:04]} 12. dxc5 {[%emt 0:00:30]} Nxc5 {[%emt 0:00:30] The position is equal.} 13. Bxf5 {[%emt 0:00:30]} Nxb3 {[%emt 0:00:30]} 14. axb3 {[%emt 0:00:30]} d4 {[%emt 0:00:30]} 15. Nxd4 {[%emt 0:00:30] [#]} Qf6 $146 {[%emt 0:00:30]} ({Black should play} 15... Bxh2+ $11 16. Kxh2 Qxd4) ({Predecessor:} 15... Bxh2+ 16. Kxh2 Qxd4 17. Kg1 Qf6 18. Bc2 a6 19. Ne4 Qe5 20. Bd2 Qxb2 21. Rac1 Qe5 {1-0 (57) Szczepankiewicz,D (2473)-Nowakowski,M (2407) ICCF email 2007}) 16. Be3 $1 $14 {[%emt 0:00:30] &Bianco is much more active. The black rooks are badly placed.} ({Worse is} 16. Re4 Bc5 17. Rf4 (17. Nce2 $2 Bxd4 18. Nxd4 Rad8 $19) 17... Bxd4 $17) 16... c5 $2 {[%emt 0:00:30] [#] A mistake that costs the game.} (16... Bb4 $14) 17. Ne4 $18 {[%emt 0:00:30][%cal Bc3e4,Be4g3,Bg3f5][%mdl 32]} Bxh2+ $2 {[%emt 0:00:30]} (17... Qe5 {was called for.}) 18. Kxh2 {[%emt 0:00:30] White is clearly winning.} Qh4+ {[%emt 0:00:30]} 19. Kg1 {[%emt 0:00:30]} cxd4 {[%emt 0:00:30]} 20. Bg5 {[%emt 0:00:30] A strong pair of Bishops.} ({Weaker is} 20. Bxd4 Qf4 $18) 20... Qh5 {[%emt 0:00:30]} 21. f4 {[%emt 0:00:30] [#] Black must now prevent Ng3.} f6 {[%emt 0:00:30]} 22. Ng3 {[%emt 0:00:30]} Qe8 {[%emt 0:00:30]} (22... Qf7 $142) 23. Rxe8 {[%emt 0:00:30]} Rfxe8 {[%emt 0:00:30]} 24. Bh4 {[%emt 0:00:30]} Re3 {[%emt 0:00:30]} 25. Bc2 {[%emt 0:00:30]} Rae8 {[%emt 0:00:30]} 26. Nf5 {[%emt 0:00:30]} Re2 {[%emt 0:00:30]} 27. Nxd4 {[%emt 0:00:30] Weighted Error Value: White=0.08 (flawless) /Black=0.92} 1-0

[Event "Doeberl Cup 2022"]
[Site "Canberra"]
[Date "2022.04.14"]
[Round "1.3"]
[White "Bukreyev, Andriy"]
[Black "Cheng, Bobby"]
[Result "0-1"]
[ECO "B06"]
[WhiteElo "2005"]
[BlackElo "2550"]
[Annotator "TA"]
[PlyCount "76"]
[EventDate "2022.04.14"]
[EventType "swiss"]
[EventCountry "AUS"]
[SourceTitle "playchess.com"]
[Source "ChessBase"]
[SourceQuality "1"]
[TimeControl "5400+30"]

{[%evp 15,76,64,58,36,48,40,86,35,16,0,0,0,0,0,20,0,0,-17,-25,-12,-12,-22,0,-77,-67,-100,-87,-97,-112,-145,-136,-139,-107,-143,-100,-85,-47,-148,-152,-152,-145,-233,-231,-283,-286,-283,-288,-274,-250,-250,-245,-350,-345,-366,-360,-437,-405,-447,-472,-503,-392,-929,-916]} 1. e4 {[%emt 0:00:31]} g6 2. d4 {[%emt 1:30:59]} Bg7 {[%emt 1:31:30]} 3. Nc3 {[%emt 0:00:30]} d6 {[%emt 0:00:00]} 4. f4 {[%emt 0:00:00]} a6 5. Nf3 {[%emt 0:01:00]} b5 {[%emt 0:00:00]} 6. Bd3 {[%emt 0:00:00]} Bb7 {[%emt 0:02:00]} 7. O-O {[%emt 0:01:00]} Nd7 {[%emt 0:00:00]} 8. e5 {[%emt 0:00:30]} c5 {[%emt 0:00:00]} 9. Be4 {[%emt 0:00:00] B06: Modern Defence.} Bxe4 {[%emt 0:01:30]} 10. Nxe4 {[%emt 0:01:00]} cxd4 {[%emt 0:00:00][%cal Rd6e5]} 11. exd6 {[%emt 0:00:00]} (11. Qxd4 dxe5 12. Qd3 exf4 $15) (11. Neg5 $1 $16 {And now e6 would win.} h6 12. Nxf7 Kxf7 13. Nxd4) 11... Qb6 {[%emt 0:00:00] [#]} 12. Qd3 $146 {[%emt 0:01:00]} ({Predecessor:} 12. Re1 e6 13. a4 Rc8 14. Qd3 Ngf6 15. Ne5 Nd5 16. Nxd7 Kxd7 17. Bd2 h6 18. b4 {½-½ (38) Kollars,D (2491)-Vavulin,M (2582) Khanty-Mansiysk 2016}) 12... f5 {[%emt 0:01:30]} 13. Neg5 {[%emt 0:00:30]} Qxd6 {[%emt 0:00:00]} 14. Qb3 {[%emt 0:00:30] Hoping for Qf7+.} Nh6 {[%emt 0:01:00][%cal Bg8h6,Bh6g4,Bg4e3,Be3d5,Bd5f4,Bf4h3,Bh3g5][%mdl 32] Against Qf7+} 15. Ne6 {[%emt 0:00:30]} Bf6 {[%emt 0:00:00]} 16. Bd2 {[%emt 0:00:30]} Nc5 {[%emt 0:01:00]} 17. Nxc5 {[%emt 0:00:30]} Qxc5 {[%emt 0:00:30]} 18. Bb4 {[%emt 0:00:30]} Qc4 {[%emt 0:00:00]} 19. Rad1 {[%emt 0:00:00]} (19. Rfe1 $11) 19... Ng4 $17 {[%emt 0:00:00] White must now prevent ...Ne3.} 20. Rfe1 {[%emt 0:00:00]} Ne3 {[%emt 0:00:00]} 21. Rd2 {[%emt 0:00:00][%cal Of3d4]} Rc8 {[%emt 0:00:00][%cal Re3c2] &Nero is more active.} 22. Qxc4 {[%emt 0:00:00]} Rxc4 {[%emt 0:00:00]} 23. c3 {[%emt 0:00:42]} Nd5 {[%emt 0:00:00][%cal Rd5c3]} 24. b3 {[%emt 0:00:37]} Rc8 {[%emt 0:00:00]} (24... Nxb4 25. cxb4 Rc6 26. Nxd4 $11) 25. Nxd4 {[%emt 0:00:24]} Nxf4 {[%emt 0:00:00] Threatens to win with ...Kf7.} 26. g3 {[%emt 0:00:37] [#]} ({Better is} 26. Bd6 $15 Nh5 27. Rde2 Rxc3 28. Rxe7+ Bxe7 29. Rxe7+ Kd8 30. Ne6+ Kc8 31. Be5 Rc1+ 32. Kf2) 26... Nh3+ $1 {[%emt 0:00:00]} ({Of course not} 26... Nd5 $6 {[#]} 27. Nxb5 $1 (27. Nxf5 Rd8 $11) 27... axb5 28. Rxd5 $11) 27. Kg2 {[%emt 0:00:09]} Ng5 {[%emt 0:00:00]} 28. Ne6 {[%emt 0:00:55]} (28. Rde2 $17 Ne4 29. g4) 28... Ne4 $19 {[%emt 0:00:00]} 29. Rd3 {[%emt 0:00:15]} Kf7 {[%emt 0:00:00]} ({But not} 29... Nxc3 $2 30. Bxc3 Rxc3 31. Rd2 $19) 30. Nd4 {[%emt 0:00:50]} Rhd8 {[%emt 0:00:00] aiming for ...e5.} 31. Red1 {[%emt 0:00:17]} Nc5 {[%emt 0:00:00]} 32. Bxc5 {[%emt 0:00:54]} Rxc5 {[%emt 0:00:00]} 33. R1d2 {[%emt 0:00:56]} (33. Ne2 $142 Rdc8 34. Rc1) 33... Rdc8 {[%emt 0:00:00]} 34. Ne2 {[%emt 0:00:40]} Bxc3 {[%emt 0:00:00]} 35. Rd1 {[%emt 0:00:27]} Bf6 {[%emt 0:00:00]} 36. Nf4 {[%emt 0:00:23]} Rc2+ {[%emt 0:00:00]} 37. R1d2 {[%emt 0:00:06]} R8c3 {[%emt 0:00:00]} 38. Nd5 $2 {[%emt 0:00:29]} (38. Rd7) 38... Rxd3 {[%emt 0:00:00] Weighted Error Value: White=0.44/Black=0.12 (very precise)} 0-1

[Event "Doeberl Cup 2022"]
[Site "Canberra"]
[Date "2022.04.14"]
[Round "1.4"]
[White "Fernandez, Daniel Howard"]
[Black "Gong, Noah"]
[Result "1-0"]
[ECO "A34"]
[WhiteElo "2487"]
[BlackElo "1993"]
[Annotator "TA"]
[PlyCount "65"]
[EventDate "2022.04.14"]
[EventType "swiss"]
[EventCountry "AUS"]
[SourceTitle "playchess.com"]
[Source "ChessBase"]
[SourceQuality "1"]
[TimeControl "5400+30"]

{[%evp 12,65,38,38,84,64,77,58,74,68,85,50,72,62,74,70,79,80,72,0,0,0,0,0,0,4,38,45,31,41,38,54,120,104,239,245,237,177,291,163,222,214,251,273,283,272,382,374,964,931,1970,1722,29973,29974,29977,29979]} 1. c4 Nf6 {[%emt 1:31:00]} 2. Nc3 d5 {[%emt 0:00:30]} 3. cxd5 Nxd5 {[%emt 0:00:30]} 4. Nf3 c5 5. e4 {[%emt 1:33:00]} Nxc3 {[%emt 0:01:00]} 6. dxc3 {[%emt 0:00:30]} Qxd1+ {[%emt 0:00:30]} 7. Kxd1 {[%emt 0:00:30]} g6 {[%emt 0:00:30] A34: Symmetrical English: 2 Nc3, lines with ...d5.} (7... Nc6 $14 {should be considered.}) 8. Be3 {[%emt 0:00:30]} b6 {[%emt 0:00:30]} 9. Bb5+ {[%emt 0:00:30]} Bd7 {[%emt 0:00:30] White is slightly better.} 10. a4 {[%emt 0:00:30] [#]} Bg7 $146 {[%emt 0:00:30] Against Ne5} ({Predecessor:} 10... Nc6 11. Kc2 a6 12. Be2 e5 13. Rhd1 f6 14. Nd2 Na5 15. Nc4 Nxc4 16. Bxc4 Bc6 {1-0 (27) Haugli,P (2259)-Andersen,D (1956) Ballerup 2016}) 11. Ke2 {[%emt 0:00:30]} O-O {[%emt 0:00:30]} 12. Rhd1 {[%emt 0:00:30]} Bc6 {[%emt 0:00:30] [#]} 13. Nd2 $1 {[%emt 0:00:30] 0x0.001b374052dedp-1022s more active pieces.} a6 {[%emt 0:00:30]} 14. Bxc6 {[%emt 0:00:30]} Nxc6 {[%emt 0:00:30]} 15. a5 {[%emt 0:00:30]} (15. g4 $16) 15... Nxa5 $11 {[%emt 0:00:30]} 16. Bxc5 {[%emt 0:00:30]} Nc6 $1 {[%emt 0:00:30]} 17. Be3 {[%emt 0:00:30] Strongly threatening Nc4.} b5 {[%emt 0:00:30] Against Nc4} 18. Nb3 $36 {[%emt 0:00:30][%mdl 2048] White is more active.} b4 {[%emt 0:00:30]} 19. Nd4 {[%emt 0:00:30]} Rfc8 {[%emt 0:00:30]} 20. Nxc6 {[%emt 0:00:30]} Rxc6 {[%emt 0:00:30]} 21. cxb4 {[%emt 0:00:30][%cal Ob4b5]} Rc2+ {[%emt 0:00:30]} (21... Rb8 $14) 22. Rd2 $16 {[%emt 0:00:30]} Rxb2 {[%emt 0:00:30] Black cannot hold the game after this.} (22... Rcc8 $16 {might work better.}) 23. Rxb2 $18 {[%emt 0:00:30]} Bxb2 $16 {[%emt 0:00:30][%mdl 4096] Endgame KRB-KRB} 24. Ra4 {[%emt 0:00:30][%cal Ob4b5]} Bc3 {[%emt 0:00:30]} (24... Rb8 $142 25. Bc5 (25. Rxa6 Rxb4 26. Kd3 Kg7 $11) 25... Kg7 26. Rxa6 Bf6) 25. Kd3 {[%emt 0:00:30]} (25. b5 $142) 25... Be1 {[%emt 0:00:30]} (25... Be5 $142 26. Bb6 Rc8) 26. Bc5 $18 {[%emt 0:00:30] Hoping for Ra1.} a5 {[%emt 0:00:30]} 27. b5 {[%emt 0:00:30][%cal Bb4b5,Bb5b6,Bb6b7][%mdl 32]} ({Less strong is} 27. Bxe7 Re8 $14) 27... Kf8 {[%emt 0:00:30]} 28. b6 {[%emt 0:00:30] And now Kc4 would win.} Ke8 {[%emt 0:00:30]} (28... Rc8 $142) 29. Ra1 {[%emt 0:00:30]} Bb4 {[%emt 0:00:30] [#]} (29... Rd8+ 30. Kc4 Bd2) 30. Bxb4 {[%emt 0:00:30]} Rd8+ {[%emt 0:00:30]} 31. Kc4 {[%emt 0:00:30]} axb4 {[%emt 0:00:30]} 32. b7 {[%emt 0:00:30]} Rb8 {[%emt 0:00:30]} 33. Ra8 {[%emt 0:00:00] Weighted Error Value: White=0.16 (very precise) /Black=0.62} 1-0

[Event "Doeberl Cup 2022"]
[Site "Canberra"]
[Date "2022.04.14"]
[Round "2.1"]
[White "Melkumyan, Hrant"]
[Black "Puccini, Jack"]
[Result "1-0"]
[ECO "A13"]
[WhiteElo "2649"]
[BlackElo "2313"]
[Annotator "TA"]
[PlyCount "113"]
[EventDate "2022.04.14"]
[EventType "swiss"]
[EventCountry "AUS"]
[SourceTitle "playchess.com"]
[Source "ChessBase"]
[SourceQuality "1"]
[TimeControl "5400+30"]

{[%evp 16,113,36,27,17,23,30,7,16,0,0,0,0,0,4,0,8,0,11,14,20,19,32,17,6,0,6,6,22,22,22,15,18,20,18,18,16,10,15,0,0,0,10,10,15,15,15,8,15,15,15,15,15,14,17,16,40,33,63,51,69,69,69,70,207,187,184,135,231,225,224,226,224,224,411,236,487,464,434,437,289,283,1233,664,946,912,1348,1241,1467,1319,1825,1465,2079,2119,1931,1859,2803,2632,29979,6875]} 1. Nf3 {[%emt 0:09:52]} d5 {[%emt 0:00:23]} 2. g3 {[%emt 0:01:27]} Nf6 {[%emt 0:00:14]} 3. Bg2 {[%emt 0:00:17]} e6 {[%emt 0:00:14]} 4. O-O {[%emt 0:00:48]} c5 {[%emt 0:00:10]} 5. c4 {[%emt 0:00:33]} dxc4 {[%emt 0:00:16]} 6. Na3 {[%emt 0:00:42]} Nc6 {[%emt 0:00:23]} 7. Nxc4 {[%emt 0:00:12]} Be7 {[%emt 0:00:25]} 8. b3 {[%emt 0:01:01]} O-O {[%emt 0:00:27]} 9. Bb2 {[%emt 0:00:41]} Qc7 {[%emt 0:02:49] A13: English Opening: 1...e6.} 10. Nfe5 {[%emt 0:06:50]} Bd7 {[%emt 0:00:53]} 11. d3 $5 {[%emt 0:09:49][%mdl 4] An interesting side line.} Rfd8 {[%emt 0:01:29] The position is equal.} 12. Nxd7 Qxd7 {[%emt 0:00:47]} 13. Rc1 {[%emt 0:02:44]} Rac8 {[%emt 0:01:07]} 14. Re1 {[%emt 0:07:01] [#]} Ne8 $146 {[%emt 0:04:41]} ({Predecessor:} 14... Nd5 15. Qc2 Bg5 16. Rcd1 Bf6 17. Bxf6 Nxf6 18. Qd2 b6 19. a3 h6 20. Rb1 Qd4 {½-½ (56) Loiacono,L (2297)-Simonetto,A (2185) Padova 2019}) 15. Qc2 {[%emt 0:02:19]} Bf6 {[%emt 0:02:34]} 16. a3 {[%emt 0:02:39]} h6 {[%emt 0:05:27]} 17. Qb1 {[%emt 0:03:23]} Bxb2 {[%emt 0:12:19]} 18. Qxb2 {[%emt 0:02:41]} Nd6 {[%emt 0:00:29]} 19. Nxd6 {[%emt 0:06:21]} Qxd6 {[%emt 0:00:06]} 20. Rc3 {[%emt 0:00:20]} b6 {[%emt 0:07:44]} 21. Rec1 {[%emt 0:06:18][%cal Ob3b4]} Ne7 {[%emt 0:02:27]} 22. b4 {[%emt 0:07:26]} cxb4 {[%emt 0:00:37]} 23. axb4 {[%emt 0:00:12]} Rxc3 {[%emt 0:04:56]} 24. Rxc3 {[%emt 0:00:08]} Rc8 {[%emt 0:01:06]} 25. Rxc8+ {[%emt 0:00:38]} Nxc8 {[%emt 0:00:05]} 26. Qc2 {[%emt 0:00:20]} Ne7 {[%emt 0:04:58]} 27. Qa4 {[%emt 0:02:06] Threatens to win with Qe8+.} g6 {[%emt 0:00:17]} 28. b5 {[%emt 0:04:25]} Qc7 {[%emt 0:06:38]} 29. e3 {[%emt 0:01:30][%cal Be2e3,Be3e4,Be4e5][%mdl 32]} h5 {[%emt 0:07:04]} 30. Bf1 {[%emt 0:04:25]} Nf5 {[%emt 0:03:27]} 31. d4 {[%emt 0:02:17]} Nd6 {[%emt 0:00:51]} 32. Qa3 {[%emt 0:01:56]} Kg7 {[%emt 0:02:20]} 33. Bd3 {[%emt 0:00:15]} Kg8 {[%emt 0:01:55]} 34. e4 {[%emt 0:02:09]} Qd7 {[%emt 0:02:58]} 35. Qb4 {[%emt 0:00:17]} Nb7 {[%emt 0:02:14][%cal Oe6e5]} 36. e5 {[%emt 0:03:58]} Qd5 {[%emt 0:11:19]} 37. Qc4 $1 {[%emt 0:01:42]} Qf3 {[%emt 0:03:23]} 38. Be2 $1 {[%emt 0:01:49]} Qe4 {[%emt 0:01:18]} 39. Qd3 {[%emt 0:00:13]} Qxd3 {[%emt 0:04:19] This move loses the game for Black.} ({Black should play} 39... Qd5 $1 $14) 40. Bxd3 $14 {[%emt 0:00:05][%mdl 4096] Endgame KB-KN} Na5 {[%emt 0:02:07] [#]} 41. Bc2 {[%emt 0:00:06] Prevents Nb3.} Kg7 {[%emt 0:00:25]} (41... Nc4 $16 {might work better.}) 42. f4 $18 {[%emt 0:09:35]} Kf8 {[%emt 0:03:49]} 43. Kf2 {[%emt 0:00:30]} Ke7 {[%emt 0:00:30]} 44. Ke2 {[%emt 0:00:30]} Nb7 $2 {[%emt 0:00:30]} (44... Nc4 45. Bb1 Kd7) 45. Be4 {[%emt 0:00:00]} Nd8 {[%emt 0:00:30]} (45... Na5 46. d5 Nb3) 46. Kf2 {[%emt 0:01:00]} Kf8 {[%emt 0:00:30]} 47. Kg2 {[%emt 0:00:00]} Kg7 {[%emt 0:00:30]} 48. Kh3 {[%emt 0:01:00]} f5 $2 {[%emt 0:00:00]} (48... f6 49. Bd3 Nf7) 49. Bf3 {[%emt 0:00:00]} Kh6 {[%emt 0:00:26]} 50. Kg2 {[%emt 0:00:00]} Kg7 {[%emt 0:00:05]} 51. Be2 {[%emt 0:00:00]} Kf7 {[%emt 0:00:34]} 52. Bc4 {[%emt 0:00:00]} Ke7 {[%emt 0:00:29] [#]} 53. Kh3 $1 {[%emt 0:00:00]} Nf7 {[%emt 0:00:47]} 54. Kh4 {[%emt 0:00:00]} Nh6 {[%emt 0:00:17]} 55. h3 {[%emt 0:00:00]} Kf7 {[%emt 0:00:46]} 56. d5 {[%emt 0:00:00][%cal Bd4d5,Bd5d6][%mdl 32] Threatening mate with d6.} Ng8 {[%emt 0:00:34]} 57. d6 {[%emt 0:00:00] Weighted Error Value: White=0.12 (very precise) /Black=0.46} 1-0

[Event "Doeberl Cup 2022"]
[Site "Canberra"]
[Date "2022.04.14"]
[Round "2.2"]
[White "Winkelman, Albert"]
[Black "Kuybokarov, Temur"]
[Result "1-0"]
[ECO "C78"]
[WhiteElo "2257"]
[BlackElo "2576"]
[Annotator "TA"]
[PlyCount "85"]
[EventDate "2022.04.14"]
[EventType "swiss"]
[EventCountry "AUS"]
[SourceTitle "playchess.com"]
[Source "ChessBase"]
[SourceQuality "1"]
[TimeControl "5400+30"]

{[%evp 12,85,36,22,18,21,10,24,29,18,56,29,25,33,17,31,33,0,108,110,116,118,101,105,158,156,144,143,156,150,204,204,207,208,208,205,260,210,202,137,271,268,460,456,458,450,469,278,393,372,402,300,398,398,383,376,780,741,1260,1265,1222,1341,1189,1020,1341,1049,1273,1256,1212,1166,1131,1111,1047,940,930,864]} 1. e4 {[%emt 0:00:10]} e5 {[%emt 0:04:56]} 2. Nf3 {[%emt 0:00:32]} Nc6 {[%emt 0:00:13]} 3. Bb5 {[%emt 0:00:30]} a6 {[%emt 0:00:30]} 4. Ba4 {[%emt 0:00:30]} Nf6 {[%emt 0:00:30]} 5. O-O {[%emt 0:00:30]} Bc5 {[%emt 0:00:30]} 6. c3 {[%emt 0:00:30]} b5 {[%emt 0:00:30]} 7. Bc2 {[%emt 0:07:04]} d5 {[%emt 0:00:00] [#] C78: Ruy Lopez: Archangelsk and Möller Defences.} 8. Nxe5 $1 {[%emt 0:00:30]} Nxe5 {[%emt 0:00:00]} 9. d4 {[%emt 0:17:41]} dxe4 {[%emt 0:15:15] White has an edge.} 10. dxc5 {[%emt 0:00:30]} Qe7 {[%emt 0:00:30]} 11. Bg5 {[%emt 0:00:30][%cal Oc2e4]} Bb7 {[%emt 0:00:30]} 12. Nd2 {[%emt 0:00:30][%cal Oc2e4,Bb1d2,Bd2b3,Bb3d4,Bd4f5,Bf5d6][%mdl 32]} O-O-O {[%emt 0:00:30]} 13. Qe2 {[%emt 0:00:30][%cal Rd2e4]} Nd3 {[%emt 0:00:30]} 14. a4 {[%emt 0:00:30] [#] Black must now prevent axb5.} (14. Bxd3 $5 Rxd3 15. a4 $11) 14... Rhe8 $146 {[%emt 0:00:30]} (14... Qe5 $11 15. h4 h6) ({Predecessor:} 14... Qe5 15. Be3 h5 16. axb5 Ng4 17. g3 Nxe3 18. bxa6 Nxc2 19. axb7+ Kxb7 20. c6+ Kxc6 {½-½ (49) So,W (2772)-Le,Q (2709) chess24.com INT 2021}) 15. axb5 $16 {[%emt 0:00:30] Black is on the road to losing.} axb5 {[%emt 0:00:30]} 16. Nb3 {[%emt 0:00:30]} Qe5 {[%emt 0:00:30]} 17. Be3 {[%emt 0:00:30]} Qh5 {[%emt 0:00:30]} (17... Nd5 $142) 18. Qxh5 {[%emt 0:00:30]} Nxh5 {[%emt 0:00:30]} 19. Bxd3 {[%emt 0:00:30]} exd3 {[%emt 0:00:30]} 20. Nd4 {[%emt 0:00:30]} c6 {[%emt 0:00:30] [#]} (20... Kd7 $16 21. Ra7 (21. Nxb5 Ra8 $16) 21... Bc6) 21. Nf5 $1 $18 {[%emt 0:00:30]} Re5 {[%emt 0:00:30]} 22. Nd6+ {[%emt 0:00:30]} Rxd6 {[%emt 0:00:30]} 23. cxd6 {[%emt 0:00:30]} c5 {[%emt 0:00:30]} 24. Rfe1 {[%emt 0:00:30]} Nf6 {[%emt 0:00:30]} 25. Bf4 {[%emt 0:00:30]} Rf5 {[%emt 0:00:30]} (25... Rxe1+ $16 26. Rxe1 Nd5) 26. Bg3 {[%emt 0:00:30] Strongly threatening Re7.} Rd5 $2 {[%emt 0:00:30]} (26... Bc6 {was necessary.} 27. f3 c4) 27. Re7 {[%emt 0:00:30] Rc7+ would kill now.} d2 {[%emt 0:00:30]} 28. Rd1 {[%emt 0:00:30]} Nh5 {[%emt 0:00:30]} 29. Re2 {[%emt 0:00:30]} (29. Rc7+ $142 Kb8 {[#]} 30. Rxc5 $3 {[%mdl 512]} Nxg3 31. Rxd5 Ne2+ 32. Kf1 Bxd5 33. Kxe2) 29... Nxg3 {[%emt 0:00:30]} (29... Kd7 {might work better.} 30. Rexd2 Rxd2 31. Rxd2 Nxg3) 30. hxg3 {[%emt 0:00:30]} ({Not} 30. fxg3 Rxd6 31. b4 Rd5 32. Rexd2 Rxd2 33. Rxd2 cxb4 $18) 30... Rxd6 {[%emt 0:00:30]} 31. Rdxd2 {[%emt 0:00:30]} Rxd2 {[%emt 0:00:30]} 32. Rxd2 {[%emt 0:00:30][%mdl 4096] Endgame KR-KB} Kc7 {[%emt 0:00:30]} 33. b4 {[%emt 0:00:30]} c4 $2 {[%emt 0:00:30]} (33... h6 34. f3 h5) 34. f3 {[%emt 1:01:04] White is clearly winning.} f6 {[%emt 1:12:34]} 35. Kf2 {[%emt 0:00:08]} Bc6 {[%emt 0:00:27]} 36. Ke3 {[%emt 0:00:09]} Bb7 {[%emt 0:00:34]} 37. Rd1 {[%emt 0:00:30]} Bc6 {[%emt 0:00:30]} 38. Kf4 {[%emt 0:00:30]} Bd7 {[%emt 0:00:30]} 39. Rh1 {[%emt 0:00:30]} h6 {[%emt 0:00:30]} 40. Ke4 {[%emt 0:00:30]} Be6 {[%emt 0:00:30]} 41. Rh5 {[%emt 0:00:30]} Kb6 {[%emt 0:00:30]} 42. Rc5 {[%emt 0:00:30]} g6 {[%emt 0:00:30]} 43. g4 {[%emt 0:00:30] Weighted Error Value: White=0.20 (precise) /Black=0.42} 1-0